{"text_format":"3","workbook":"xlsx","n_sheets":1,"sheets":["Pasiūlymas"],"not_rendered":{"images":1,"defined_names":20},"read":"whole","date_system":"1900"}

{"sheet":"Pasiūlymas","index":0,"n_rows":39,"n_cols":7,"rows_kept":39,"merged":[[0,1,3,1],[0,3,0,6],[1,4,1,6],[2,4,2,6],[32,3,35,4],[36,3,36,6],[37,3,37,5],[38,3,38,5]]}
[{"$nulls":3},"STATYBOS PASIŪLYMAS"]
[{"$nulls":3},"Įmonės pavadinimas","| Šiame langelyje įveskite įmonės adresą"]
[{"$nulls":3},"Telefonas","| Šiame langelyje įveskite įmonės fakso numerį ir kontaktinį el. pašto adresą"]
[{"$nulls":3},"KIEKIS","APRAŠAS","VIENETO KAINA","SUMA"]
[null,"KLIENTAS",null,10,"1 prekė",{"v":165,"d":"165.00 EUR"},{"$f":"IFERROR(LinijosElementai[[#This Row],[KIEKIS]]*LinijosElementai[[#This Row],[VIENETO KAINA]], \"\")","v":{"v":1650,"d":"1,650.00 EUR"}}]
[null,"Šiame langelyje įveskite kliento vardą ir pavardę",null,21,"2 prekė",{"v":40,"d":"40.00 EUR"},{"$f":"IFERROR(LinijosElementai[[#This Row],[KIEKIS]]*LinijosElementai[[#This Row],[VIENETO KAINA]], \"\")","v":{"v":840,"d":"840.00 EUR"}}]
[null,"SĄMATOS NR.",null,5,"3 prekė",{"v":10.5,"d":"10.50 EUR"},{"$f":"IFERROR(LinijosElementai[[#This Row],[KIEKIS]]*LinijosElementai[[#This Row],[VIENETO KAINA]], \"\")","v":{"v":52.5,"d":"52.50 EUR"}}]
[null,"C-1234",null,164,"4 prekė",{"v":2.75,"d":"2.75 EUR"},{"$f":"IFERROR(LinijosElementai[[#This Row],[KIEKIS]]*LinijosElementai[[#This Row],[VIENETO KAINA]], \"\")","v":{"v":451,"d":"451.00 EUR"}}]
[null,"DATA",null,6,"5 prekė",{"v":12,"d":"12.00 EUR"},{"$f":"IFERROR(LinijosElementai[[#This Row],[KIEKIS]]*LinijosElementai[[#This Row],[VIENETO KAINA]], \"\")","v":{"v":72,"d":"72.00 EUR"}}]
[null,{"$f":"TODAY()","v":"2018-11-19"},null,18,"6 prekė",{"v":5.5,"d":"5.50 EUR"},{"$f":"IFERROR(LinijosElementai[[#This Row],[KIEKIS]]*LinijosElementai[[#This Row],[VIENETO KAINA]], \"\")","v":{"v":99,"d":"99.00 EUR"}}]
[null,"ADRESAS",null,1,"7 prekė",{"v":25,"d":"25.00 EUR"},{"$f":"IFERROR(LinijosElementai[[#This Row],[KIEKIS]]*LinijosElementai[[#This Row],[VIENETO KAINA]], \"\")","v":{"v":25,"d":"25.00 EUR"}}]
[null,"Šiame langelyje įveskite kliento adresą",{"$nulls":4},{"$f":"IFERROR(LinijosElementai[[#This Row],[KIEKIS]]*LinijosElementai[[#This Row],[VIENETO KAINA]], \"\")","v":{"v":0,"d":"0.00 EUR"}}]
[null,"MIESTAS / VALSTYBĖ / PAŠTO INDEKSAS",{"$nulls":4},{"$f":"IFERROR(LinijosElementai[[#This Row],[KIEKIS]]*LinijosElementai[[#This Row],[VIENETO KAINA]], \"\")","v":{"v":0,"d":"0.00 EUR"}}]
[null,"Šiame langelyje įveskite kliento miestą, valstybę ir pašto indeksą",{"$nulls":4},{"$f":"IFERROR(LinijosElementai[[#This Row],[KIEKIS]]*LinijosElementai[[#This Row],[VIENETO KAINA]], \"\")","v":{"v":0,"d":"0.00 EUR"}}]
[null,"TELEFONAS",{"$nulls":4},{"$f":"IFERROR(LinijosElementai[[#This Row],[KIEKIS]]*LinijosElementai[[#This Row],[VIENETO KAINA]], \"\")","v":{"v":0,"d":"0.00 EUR"}}]
[null,"Šiame langelyje įveskite kliento telefono numerį",{"$nulls":4},{"$f":"IFERROR(LinijosElementai[[#This Row],[KIEKIS]]*LinijosElementai[[#This Row],[VIENETO KAINA]], \"\")","v":{"v":0,"d":"0.00 EUR"}}]
[null,"EL. PAŠTO ADRESAS:",{"$nulls":4},{"$f":"IFERROR(LinijosElementai[[#This Row],[KIEKIS]]*LinijosElementai[[#This Row],[VIENETO KAINA]], \"\")","v":{"v":0,"d":"0.00 EUR"}}]
[null,"Šiame langelyje įveskite kliento el. pašto adresą",{"$nulls":4},{"$f":"IFERROR(LinijosElementai[[#This Row],[KIEKIS]]*LinijosElementai[[#This Row],[VIENETO KAINA]], \"\")","v":{"v":0,"d":"0.00 EUR"}}]
[null,"PARDAVĖJAS",{"$nulls":4},{"$f":"IFERROR(LinijosElementai[[#This Row],[KIEKIS]]*LinijosElementai[[#This Row],[VIENETO KAINA]], \"\")","v":{"v":0,"d":"0.00 EUR"}}]
[null,"Šiame langelyje įveskite pardavėją",{"$nulls":4},{"$f":"IFERROR(LinijosElementai[[#This Row],[KIEKIS]]*LinijosElementai[[#This Row],[VIENETO KAINA]], \"\")","v":{"v":0,"d":"0.00 EUR"}}]
[null,"PROJEKTAS",{"$nulls":4},{"$f":"IFERROR(LinijosElementai[[#This Row],[KIEKIS]]*LinijosElementai[[#This Row],[VIENETO KAINA]], \"\")","v":{"v":0,"d":"0.00 EUR"}}]
[null,"Šiame langelyje įveskite projekto pavadinimą",{"$nulls":4},{"$f":"IFERROR(LinijosElementai[[#This Row],[KIEKIS]]*LinijosElementai[[#This Row],[VIENETO KAINA]], \"\")","v":{"v":0,"d":"0.00 EUR"}}]
[null,"PARENGĖ:",{"$nulls":4},{"$f":"IFERROR(LinijosElementai[[#This Row],[KIEKIS]]*LinijosElementai[[#This Row],[VIENETO KAINA]], \"\")","v":{"v":0,"d":"0.00 EUR"}}]
[null,"Šiame langelyje įveskite parengusio asmens vardą ir pavardę",{"$nulls":4},{"$f":"IFERROR(LinijosElementai[[#This Row],[KIEKIS]]*LinijosElementai[[#This Row],[VIENETO KAINA]], \"\")","v":{"v":0,"d":"0.00 EUR"}}]
[null,"GAVĖJAS",{"$nulls":4},{"$f":"IFERROR(LinijosElementai[[#This Row],[KIEKIS]]*LinijosElementai[[#This Row],[VIENETO KAINA]], \"\")","v":{"v":0,"d":"0.00 EUR"}}]
[null,"Šiame langelyje įveskite pasiūlymo gavėjo vardą ir pavardę",{"$nulls":4},{"$f":"IFERROR(LinijosElementai[[#This Row],[KIEKIS]]*LinijosElementai[[#This Row],[VIENETO KAINA]], \"\")","v":{"v":0,"d":"0.00 EUR"}}]
[null,"MOKĖJIMO SĄLYGOS",{"$nulls":4},{"$f":"IFERROR(LinijosElementai[[#This Row],[KIEKIS]]*LinijosElementai[[#This Row],[VIENETO KAINA]], \"\")","v":{"v":0,"d":"0.00 EUR"}}]
[null,"Apmokėjimas per 30 dienų",{"$nulls":4},{"$f":"IFERROR(LinijosElementai[[#This Row],[KIEKIS]]*LinijosElementai[[#This Row],[VIENETO KAINA]], \"\")","v":{"v":0,"d":"0.00 EUR"}}]
[null,"TERMINAS",{"$nulls":4},{"$f":"IFERROR(LinijosElementai[[#This Row],[KIEKIS]]*LinijosElementai[[#This Row],[VIENETO KAINA]], \"\")","v":{"v":0,"d":"0.00 EUR"}}]
[null,{"$f":"TODAY()+30","v":"2018-12-19"},{"$nulls":4},{"$f":"IFERROR(LinijosElementai[[#This Row],[KIEKIS]]*LinijosElementai[[#This Row],[VIENETO KAINA]], \"\")","v":{"v":0,"d":"0.00 EUR"}}]
[{"$nulls":5},"TARPINĖ SUMA",{"$f":"SUBTOTAL(109,LinijosElementai[SUMA])","v":{"v":3189.5,"d":"3,189.50 EUR"}}]
[{"$nulls":3},"ŠIAME PASIŪLYME YRA NURODYTOS SĄLYGOS:",null,"MOKESČIO TARIFAS ",{"v":0.0775,"d":"7.75%"}]
[{"$nulls":3},"Čia įveskite sąlygas",null,"PARDAVIMO MOKESTIS ",{"$f":"IFERROR(Tarpinė_Suma*MokesčioTarifas, \"\")","v":{"v":247.18625,"d":"247.19 EUR"}}]
[{"$nulls":5},"KITA "]
[{"$nulls":5},"SUMA",{"$f":"IFERROR(Tarpinė_Suma+G33+Kita, \"\")","v":{"v":3436.68625,"d":"3,436.69 EUR"}}]
[]
[{"$nulls":3},"Norėdami priimti pasiūlymą, pasirašykite apačioje:"]
[]
[{"$nulls":3},"Įgaliotas atstovas",null,null,"Data"]